Cogmind - Beta 13 @@@ ROGUE MODE // 2024.06.01 @ 15:13:53 Player: Kat Result: Core destroyed Performance ------------- Evolutions (3) 1500 Regions Visited (7) 1400 Robots Destroyed (47) 235 Value Destroyed (1420) 1420 Prototype IDs (8) 160 Alien Tech Used (0) 0 Bonus (869) 869 TOTAL SCORE: 5584 Bonus ------- Follower Combat Kills 69 Entered DSFs 500 Aligned with FarCom 300 Cogmind --------- Core Integrity 0/700 Matter 92/300 Energy 225/290 System Corruption 0% Temperature Critical (1403) Movement Core (750) Ox14 Location -7/DSF Parts ------- > --- POWER (1) -------- Improved Deuterium Engine > --- PROPULSION (4) --- (None) > --- UTILITY (4) ------ Large Storage Unit Hacking Suite > --- WEAPON (4) ------- Heavy EM Shotgun Heavy Laser Advanced Assault Cannon > --- INVENTORY (15) --- Nuclear Core Armored Treads Gravmag System Particle Charger Advanced ECM Suite Splice Drone Bay (6/6) Heavy Laser Gatling Laser Latent Energy Streamer Datajack Peak State ------------ > --- POWER ------------ Improved Deuterium Engine > --- PROPULSION ------- Improved Carbon-fiber Leg Improved Carbon-fiber Leg Improved Carbon-fiber Leg Improved Carbon-fiber Leg > --- UTILITY ---------- Large Storage Unit Particle Charger Improved Utility Shielding Hacking Suite > --- WEAPON ----------- Heavy Laser Heavy Laser Heavy Laser Heavy Laser > --- INVENTORY -------- Nuclear Core Light Nuclear Core Armored Treads Gravmag System Improved Heat Sink Advanced ECM Suite Splice Drone Bay Heavy EM Shotgun Heavy EM Shotgun Heavy EM Shotgun Heavy Laser Gatling Laser Latent Energy Streamer Advanced Assault Cannon Datajack [Rating: 52] Favorites ----------- Power Light Ion Engine Engine Light Ion Engine Power Core Light Nuclear Core Propulsion Improved Carbon-fiber Leg Leg Improved Carbon-fiber Leg Wheel Wheel Hover Unit Combat Airjet Utility Small Storage Unit Device Particle Charger Storage Small Storage Unit Hackware Hacking Suite Protection Improved Utility Shielding Weapon Heavy Laser Energy Gun Heavy Laser Energy Cannon Plasma Cannon Ballistic Gun Gauss Rifle Ballistic Cannon Advanced Assault Cannon Launcher Mini Grenade Launcher Impact Weapon Makeshift Hammer Special Melee Weapon Datajack Build | -11 -10 -10 -10 -9 -8 -7 -7 ------- Run | Yrd Mat Min Exi Min Mat Fac DSF Slots Evolved 6 | . . . . . 4 2 . Power . | . . . . . . . . Propulsion 2 | . . . . . 1 1 . Utility 2 | . . . . . 2 . . Weapon 2 | . . . . . 1 1 . Parts Attached 80 | 6 1 2 2 5 42 10 12 Power 6 | 1 . . . 1 2 2 . Engine 3 | 1 . . . 1 . 1 . Core 3 | . . . . . 2 1 . Reactor . | . . . . . . . . Propulsion 16 | 2 . 2 . . 11 1 . Treads . | . . . . . . . . Leg 12 | . . . . . 11 1 . Wheel 2 | 2 . . . . . . . Hover 2 | . . 2 . . . . . Flight . | . . . . . . . . Utility 17 | 1 1 . 1 3 6 3 2 Device 12 | . 1 . 1 3 3 2 2 Storage 2 | 1 . . . . 1 . . Processor . | . . . . . . . . Hackware 1 | . . . . . . 1 . Protection 2 | . . . . . 2 . . Artifact . | . . . . . . . . Weapon 41 | 2 . . 1 1 23 4 10 Energy Gun 28 | 2 . . . . 17 4 5 Energy Cannon 5 | . . . 1 . . . 4 Ballistic Gun 4 | . . . . . 4 . . Ballistic Cannon 1 | . . . . . . . 1 Launcher 1 | . . . . 1 . . . Special Weapon . | . . . . . . . . Impact Weapon 1 | . . . . . 1 . . Slashing Weapon . | . . . . . . . . Piercing Weapon . | . . . . . . . . Special Melee Weapon 1 | . . . . . 1 . . Unidentified Prototypes 8 | . . . 2 1 5 . . Parts Lost 12 | . . . . . 1 . 11 Power . | . . . . . . . . Propulsion 2 | . . . . . . . 2 Utility 3 | . . . . . 1 . 2 Weapon 7 | . . . . . . . 7 Highest Loss Streak 6 | . . . . . 1 . 6 To Critical Strikes . | . . . . . . . . Average Slot Usage (%) 94 | . 91 100 97 100 96 97 68 Engine 7 | . 14 14 14 14 4 3 7 Core 2 | . . . . . 4 3 . Leg 16 | . . . . . 26 30 11 Wheel 2 | . 28 22 . . . . . Hover 6 | . . 5 28 28 . . . Device 9 | . 6 14 12 14 8 7 4 Storage 10 | . 14 14 14 14 9 7 7 Hackware 1 | . . . . . . 5 7 Protection 7 | . . . . . 16 7 2 Energy Gun 22 | . 28 28 26 14 21 29 11 Energy Cannon 1 | . . . 1 . . . 12 Launcher 1 | . . . . 14 1 . . Naked Turns . | . . . . . . . . Heaviest Build 63 | 11 12 12 20 20 43 51 63 Greatest Support 72 | 20 20 24 24 24 54 72 72 Greatest Overweight (x) 15 | . . . . . 6 . 15 Average Overweight (x) . | . . . . . . . 2 Largest Inventory Capacity 15 | 8 8 8 8 8 15 15 15 Average Capacity 10 | 7 8 8 8 8 8 15 15 Most Carried 15 | 2 3 8 8 8 14 15 15 Average Carried 8 | . 2 4 7 7 8 12 13 Final Capacity 15 | 8 8 8 8 8 15 15 15 Final Carried 14 | 1 3 7 8 8 9 14 10 Class Distribution -------------------- 51% | Skirmisher 38% | Mutant 5% | Scavenger-Scout Dominant Class ---------------- Mutant | -10/Materials Mutant | -10/Mines Mutant | -10/Exiles Scavenger-Scout | -9/Mines Skirmisher | -8/Materials Skirmisher | -7/Factory Skirmisher | -7/DSF Resources | -11 -10 -10 -10 -9 -8 -7 -7 ----------- Run | Yrd Mat Min Exi Min Mat Fac DSF Matter Collected 964 | 260 . 30 . 73 454 . 147 Remotely . | . . . . . . . . Salvage Created 2297 | 138 . 29 . 96 1070 . 964 Parts 110 | 6 . . . 12 49 . 43 Haulers Intercepted 5 | . . . . . 4 . 1 Recyclers Shooed 5 | 2 . . . . 3 . . Parts Field Recycled . | . . . . . . . . Retrieved Matter . | . . . . . . . . Parts Self-Destructed . | . . . . . . . . Prevented . | . . . . . . . . Kills | -11 -10 -10 -10 -9 -8 -7 -7 ------- Run | Yrd Mat Min Exi Min Mat Fac DSF Combat Hostiles Destroyed 27 | . . . . 6 8 . 13 Guns 12 | . . . . 1 7 . 4 Cannons 8 | . . . . . . . 8 AOE 5 | . . . . 5 . . . Classes Destroyed 14 | 2 . . . 2 7 . 3 Worker 2 | . . . . . 2 . . Tunneler 4 | 3 . . . 1 . . . Hauler 5 | . . . . . 4 . 1 Recycler 4 | 1 . . . . 3 . . Operator 1 | . . . . . 1 . . Watcher 4 | . . . . . 4 . . Swarmer 4 | . . . . 4 . . . Grunt 12 | . . . . 2 4 . 6 Brawler 1 | . . . . . 1 . . Duelist 1 | . . . . . 1 . . Sentry 3 | . . . . . 2 . 1 Specialist 4 | . . . . . . . 4 Hunter 1 | . . . . . . . 1 Heavy 1 | . . . . . . . 1 Best Kill Streak 4 | 3 . . . 4 4 . 4 Combat Bots Only 4 | . . . . 4 3 . 4 Max Kills in Single Turn 4 | 1 . . . 4 2 . 1 Gunslinging . | . . . . . . . . Exploded 3 | . . . . 3 . . . Melee . | . . . . . . . . Uniques/NPCs Destroyed . | . . . . . . . . Combat | -11 -10 -10 -10 -9 -8 -7 -7 -------- Run | Yrd Mat Min Exi Min Mat Fac DSF Hostile Shots Fired 178 | . . . . 10 57 . 111 Missed 52 | . . . . 3 24 . 25 Damage Taken 2808 | . . . . 130 534 . 2144 Core 881 | . . . . 44 73 . 764 Absorbed by Shields . | . . . . . . . . Redirected to Shielding 163 | . . . . . 71 . 92 Regen/Repaired (Parts) 12 | . . . . . . 12 . Core Remaining (%) 89 | 100 . . . 82 86 . . Volleys Fired 112 | 14 . 7 1 4 52 . 34 Largest 4 | 2 . 2 2 2 3 . 4 Hottest 320 | 90 . 90 90 80 177 . 320 Shots Fired 288 | 28 . 14 2 8 124 . 112 Gun 206 | 28 . 14 2 4 124 . 34 Cannon 78 | . . . . . . . 78 Launcher 4 | . . . . 4 . . . Special . | . . . . . . . . Kinetic 30 | . . . . . 16 . 14 Thermal 192 | 28 . 14 2 4 67 . 77 Explosive 4 | . . . . 4 . . . Electromagnetic 62 | . . . . . 41 . 21 Robot Hit Streak 10 | 8 . 9 . 2 9 . 10 Robot Miss Streak 6 | 3 . 1 . 1 3 . 6 Penetration Max 1 | . . . . . 1 . . Secondary Targets 2 | . . . . . 2 . . Max Gunslinging Chain 1 | . . . . . 1 . . Shots Hit Robots 172 | 19 . 9 . 3 75 . 66 Core Hits 79 | 5 . 5 . 10 33 . 26 Critical Kills 1 | . . . . . . . 1 Critical Parts Destroyed 1 | . . . . . 1 . . Critical Strikes 5 | 1 . . . . 2 . 2 Burn 3 | 1 . . . . 1 . 1 Meltdown 1 | . . . . . . . 1 Destroy 1 | . . . . . 1 . . Melee Attacks . | . . . . . . . . Impact . | . . . . . . . . Slashing . | . . . . . . . . Piercing . | . . . . . . . . Sneak Attacks . | . . . . . . . . Combat Hostiles . | . . . . . . . . Follow-up Attacks . | . . . . . . . . Damage Inflicted 4080 | 251 . 101 . 352 1499 . 1877 Guns 2187 | 251 . 101 . 24 1432 . 379 Cannons 1354 | . . . . . . . 1354 Explosions 512 | . . . . 314 54 . 144 Melee . | . . . . . . . . Ramming 27 | . . . . 14 13 . . Kinetic 467 | . . . . . 196 . 271 Thermal 2586 | 251 . 101 . 63 839 . 1332 Explosive 275 | . . . . 275 . . . Electromagnetic 725 | . . . . . 451 . 274 Impact . | . . . . . . . . Slashing . | . . . . . . . . Piercing . | . . . . . . . . Highest Corruption . | . . . . . . . . Average Corruption . | . . . . . . . . Corruption Purged . | . . . . . . . . Corruption Blocked . | . . . . . . . . Overload Shots . | . . . . . . . . Overflow Damage 6 | . . . . . . . 6 Projectiles . | . . . . . . . . Explosions 6 | . . . . . . . 6 Melee . | . . . . . . . . Knockbacks 3 | . . . . . . . 3 Impact . | . . . . . . . . Kinetic 3 | . . . . . . . 3 Secondary . | . . . . . . . . Self-Inflicted Damage 55 | . . . . 55 . . . Shots 2 | . . . . 2 . . . Rammed 1 | . . . . 1 . . . Targets Rammed 3 | . . . . 1 2 . . Kicked 2 | . . . . . 2 . . Crushed . | . . . . . . . . Highest Temperature 1403 | 120 . 60 30 66 363 . 1403 Average Temperature 190 | 46 . 23 16 30 97 . 379 Received Heat Transfer 849 | . . . . 30 207 . 612 Effects 58 | . . . . . 3 . 55 Shutdowns 11 | . . . . . 1 . 10 Energy Bleed 12 | . . . . . . . 12 Interference 3 | . . . . . 2 . 1 Matter Decay 3 | . . . . . . . 3 Short Circuit 3 | . . . . . . . 3 Damage (minor) 6 | . . . . . . . 6 Damage (major) 15 | . . . . . . . 15 Damage (core) 5 | . . . . . . . 5 Siege Activations . | . . . . . . . . Robots Corrupted . | . . . . . . . . Combat Hostiles . | . . . . . . . . Parts Fried 4 | . . . . . 2 . 2 Impact Corruptions . | . . . . . . . . Robots Melted 3 | . . . . . 1 . 2 Combat Hostiles 2 | . . . . . 1 . 1 Parts Melted 16 | 1 . . . . 2 . 13 Heat Transferred 5489 | 731 . 273 . 124 1802 . 2559 Parts Sabotaged . | . . . . . . . . Parts Stolen . | . . . . . . . . Parts Stripped . | . . . . . . . . Power Chain Reactions 2 | . . . . . 1 . 1 Alert | -11 -10 -10 -10 -9 -8 -7 -7 ------- Run | Yrd Mat Min Exi Min Mat Fac DSF Peak Influence 325 | 20 13 4 . 202 325 72 273 Initial 78 | . 13 4 . . 78 68 . Average 94 | 7 13 4 . 174 116 39 134 Maximum Alert Level 1 | . . . . 1 1 . 1 Low Security (%) 84 | 100 100 100 . 42 86 100 70 Level 1 15 | . . . . 57 13 . 29 Level 2 . | . . . . . . . . Level 3 . | . . . . . . . . Level 4 . | . . . . . . . . Level 5 . | . . . . . . . . High Security . | . . . . . . . . Max Security . | . . . . . . . . Sterilizations 1 | . . . . . . . 1 Squads Dispatched 5 | . . . . . 2 1 2 Investigation 2 | . . . . . 1 1 . Extermination . | . . . . . . . . Reinforcement 3 | . . . . . 1 . 2 Assault . | . . . . . . . . Garrison . | . . . . . . . . Intercept . | . . . . . . . . Searches Triggered . | . . . . . . . . Construction Impeded . | . . . . . . . . Haulers Reinforced . | . . . . . . . . Active Scanning Responses . | . . . . . . . . Cargo Convoy Interrupts . | . . . . . . . . Stealth | -11 -10 -10 -10 -9 -8 -7 -7 --------- Run | Yrd Mat Min Exi Min Mat Fac DSF Distress Signals 5 | . 1 . . . 4 . . Communications Jammed . | . . . . . . . . Distress Signals . | . . . . . . . . Times Spotted 48 | . . 2 . 6 24 . 16 Peak Tracking Total 7 | . . 2 . 4 7 . 6 Tactical Retreats 6 | . . . . . 3 . 3 Traps | -11 -10 -10 -10 -9 -8 -7 -7 ------- Run | Yrd Mat Min Exi Min Mat Fac DSF Traps Triggered 4 | . . . . . 2 . 2 Indirectly . | . . . . . . . . Trap Hack Attempts . | . . . . . . . . Triggered . | . . . . . . . . Disarmed . | . . . . . . . . Reprogrammed . | . . . . . . . . Reused . | . . . . . . . . Traps Extracted . | . . . . . . . . Installed . | . . . . . . . . Triggered . | . . . . . . . . Machines | -11 -10 -10 -10 -9 -8 -7 -7 ---------- Run | Yrd Mat Min Exi Min Mat Fac DSF Machines Disabled 5 | . . . . 1 3 . 1 Max in Single Turn 1 | . . . . 1 1 . 1 Machines Repaired . | . . . . . . . . Machines Dismantled . | . . . . . . . . Machines Sabotaged . | . . . . . . . . Overloaded Fab Kills . | . . . . . . . . Hacking | -11 -10 -10 -10 -9 -8 -7 -7 --------- Run | Yrd Mat Min Exi Min Mat Fac DSF Machines Accessed 13 | . . . 2 1 5 5 . Terminals 7 | . . . . . 4 3 . Fabricators 1 | . . . . . . 1 . Repair Stations 1 | . . . . . . 1 . Recycling Units . | . . . . . . . . Scanalyzers . | . . . . . . . . Garrison Access 1 | . . . . . 1 . . Total Hacks 32 | . . . 8 1 13 10 . Successful 19 | . . . 8 1 4 6 . Failed 13 | . . . . . 9 4 . Catastrophic 4 | . . . . . 3 1 . Database Lockouts . | . . . . . . . . Manual 2 | . . . 2 . . . . Terminals 17 | . . . . . 10 7 . Fabricators 1 | . . . . . . 1 . Repair Stations 2 | . . . . . . 2 . Recycling Units . | . . . . . . . . Scanalyzers . | . . . . . . . . Garrison Access 3 | . . . . . 3 . . Terminal Hacks 16 | . . . 8 1 4 3 . Record 8 | . . . 8 . . . . Open Door 1 | . . . . 1 . . . Open DSF 1 | . . . . . . 1 . Unreport Threat 1 | . . . . . 1 . . Locate Traps 1 | . . . . . . 1 . Dispatch Records 1 | . . . . . 1 . . Security Status 1 | . . . . . 1 . . Surveillance Status 1 | . . . . . 1 . . Zone Layout 1 | . . . . . . 1 . Fabricator Hacks 1 | . . . . . . 1 . Build 1 | . . . . . . 1 . Repair Station Hacks 2 | . . . . . . 2 . Scan Component 1 | . . . . . . 1 . Repair 1 | . . . . . . 1 . Recycling Unit Hacks . | . . . . . . . . Scanalyzer . | . . . . . . . . Garrison Access Hacks . | . . . . . . . . Unauthorized Hacks . | . . . . . . . . Terminals . | . . . . . . . . Fabricators . | . . . . . . . . Repair Stations . | . . . . . . . . Recycling Units . | . . . . . . . . Scanalyzers . | . . . . . . . . Garrison Access . | . . . . . . . . Data Cores Recovered . | . . . . . . . . Used . | . . . . . . . . Hacking Detections 8 | . . . . . 5 3 . Full Trace Events 4 | . . . . . 3 1 . Feedback Events . | . . . . . . . . Feedback Blocked . | . . . . . . . . Robot Schematics Acquired . | . . . . . . . . Robots Built 1 | . . . . . . 1 . Authchips . | . . . . . . . . Time 81 | . . . . . . 81 . Total Robot Build Rating 1 | . . . . . . 1 . Part Schematics Acquired . | . . . . . . . . Parts Built . | . . . . . . . . Authchips . | . . . . . . . . Time . | . . . . . . . . Total Part Build Rating . | . . . . . . . . Parts Repaired 1 | . . . . . . 1 . Time 38 | . . . . . . 38 . Parts Recycled . | . . . . . . . . Recycled Matter . | . . . . . . . . Retrieved Matter . | . . . . . . . . Retrieved Components . | . . . . . . . . Parts Scanalyzed . | . . . . . . . . Part Schematics Acquired . | . . . . . . . . Parts Damaged . | . . . . . . . . Bothacking | -11 -10 -10 -10 -9 -8 -7 -7 ------------ Run | Yrd Mat Min Exi Min Mat Fac DSF Used RIF Installer . | . . . . . . . . Robots Hacked . | . . . . . . . . Non-combat . | . . . . . . . . Combat . | . . . . . . . . Robot Hacks Applied . | . . . . . . . . Relay Couplers Released . | . . . . . . . . Fabnet Peak Effective % . | . . . . . . . . Robots Rewired . | . . . . . . . . Allies Hacked . | . . . . . . . . Hacks Repelled . | . . . . . . . . Allies | -11 -10 -10 -10 -9 -8 -7 -7 -------- Run | Yrd Mat Min Exi Min Mat Fac DSF Total Allies 3 | . . . . 2 . 1 . Largest Group 2 | . . . . 2 2 1 1 Highest-Rated Group 53 | . . . . 53 53 6 6 Highest-Rated Ally 31 | . . . . 31 31 6 6 Total Orders . | . . . . . . . . Ally Attacks 19 | . . . . . 19 . . Total Damage 274 | . . . . . 274 . . Kills 5 | . . . . . 5 . . Allies Corrupted . | . . . . . . . . Allies Melted . | . . . . . . . . Intel | -11 -10 -10 -10 -9 -8 -7 -7 ------- Run | Yrd Mat Min Exi Min Mat Fac DSF Robot Analysis Total . | . . . . . . . . Derelict Logs Recovered 2 | . . 1 . 1 . . . Drone Launches . | . . . . . . . . Drone Recoveries . | . . . . . . . . Exploration | -11 -10 -10 -10 -9 -8 -7 -7 ------------- Run | Yrd Mat Min Exi Min Mat Fac DSF Turns Passed 4060 | 93 107 257 572 338 1581 708 404 Spaces Moved 2718 | 49 117 193 733 377 734 441 74 Core 20 | 3 . . . . 4 . 13 Treads . | . . . . . . . . Legs 1220 | . . . . . 718 441 61 Wheels 321 | 46 117 158 . . . . . Hover 1157 | . . 35 733 377 12 . . Flight . | . . . . . . . . Fastest Speed 50 | 50 80 77 77 77 77 120 120 Average Speed 103 | 78 80 79 77 77 127 120 269 Slowest Speed 800 | 80 80 80 77 77 350 120 800 Overloaded Moves . | . . . . . . . . Propulsion Burnouts . | . . . . . . . . Robots Hopped . | . . . . . . . . Cave-ins Triggered . | . . . . . . . . Exploration Rate (%) 44 | 4 26 38 93 67 48 13 63 Regions Visited 7 Branch Regions 3 Pre-discovered Areas 1 | . . 1 . . . . . Known Exits Taken 1 | . . . . . . 1 . Unknown Exits Taken 6 | 1 1 1 1 1 1 . . Scrap Searched 3 | . . 1 . 2 . . . Spaces Dug . | . . . . . . . . Terrain Destroyed 62 | . . . . 55 3 . 4 Melee . | . . . . . . . . Projectile 2 | . . . . . 1 . 1 AOE 60 | . . . . 55 2 . 3 Terrain Rammed . | . . . . . . . . Walls Destroyed . | . . . . . . . . Machines Disabled . | . . . . . . . . Actions | -11 -10 -10 -10 -9 -8 -7 -7 --------- Run | Yrd Mat Min Exi Min Mat Fac DSF Total 3746 | 75 130 283 738 414 1281 620 205 Wait 725 | . 10 75 . 25 385 157 73 Move 2711 | 48 116 192 732 376 733 440 74 Hop . | . . . . . . . . Pick Up 55 | 7 3 5 1 2 28 9 . Fast Attach 21 | . . . 1 . 16 . 4 Attach 31 | 6 1 2 . 1 10 6 5 Detach 11 | . . 1 1 . 5 3 1 Swap 28 | . . . 1 4 16 4 3 Drop 41 | . . 1 1 1 34 1 3 Fire 112 | 14 . 7 1 4 52 . 34 Melee . | . . . . . . . . Ram 1 | . . . . 1 . . . Kick 2 | . . . . . 2 . . Crush . | . . . . . . . . Escape Stasis 8 | . . . . . . . 8 Rewire . | . . . . . . . . Trap . | . . . . . . . . Miscellaneous . | . . . . . . . . Route ------- -11/Scrapyard -10/Materials -10/Mines -10/Exiles (discovered 2 exits: *Min x2) -9/Mines -8/Materials (discovered 2 exits: *Fac / [*Sto]) -7/Factory -7/DSF History --------- Turn | Location | Event 13 | -11/Scrapyard | Discovered new exit (range 16) 94 | -11/Scrapyard | Entered Materials 144 | -10/Materials | Discovered new exit (range 16) 176 | -10/Materials | Met 8R-AWN 201 | -10/Materials | Entered Mines 202 | -10/Mines | Followed 8R-AWN into the Mines 265 | -10/Mines | A weapon hastily lodged in a ceiling crevice suddenly fell to the ground 286 | -10/Mines | Assembled infested the area 311 | -10/Mines | Build established: Mutant 322 | -10/Mines | Learned location of Storage (-8) 449 | -10/Mines | Discovered new exit (range 5) 458 | -10/Mines | Entered Exiles 471 | -10/Exiles | Discovered new exit (range 14) 480 | -10/Exiles | Welcomed by 8R-AWN 498 | -10/Exiles | Met EX-HEX 548 | -10/Exiles | Met EX-DEC 576 | -10/Exiles | Met EX-BIN 590 | -10/Exiles | Aligned with FarCom system 591 | -10/Exiles | Given EX-Vault access code 733 | -10/Exiles | Discovered new exit (range 14) 791 | -10/Exiles | Visited The Gauntlet 947 | -10/Exiles | Opened EX-Vault 951 | -10/Exiles | Found Prototype Device 952 | -10/Exiles | Identified Chronowheel 952 | -10/Exiles | Activated Chronowheel 958 | -10/Exiles | Found Prototype Energy Cannon 958 | -10/Exiles | Identified Latent Energy Streamer 975 | -10/Exiles | Warned to stay clear of 0b10 Research branches 1030 | -10/Exiles | Left Exiles lab with Latent Energy Streamer 1030 | -10/Exiles | Entered Mines 1042 | -9/Mines | Learned Materials garrison access intel 1055 | -9/Mines | Found the Drone Emporium 1059 | -9/Mines | Found Prototype Device 1060 | -9/Mines | Identified Splice Drone Bay 1167 | -9/Mines | Discovered new exit (range 15) 1368 | -9/Mines | Entered Materials 1368 | -8/Materials | Accompanied by 2 allies 1368 | -8/Materials | Evolved 4 slots: Propulsion x1, Utility x2, Weapon x1 1369 | -8/Materials | Loaded intel: 1 garrison access location 1373 | -8/Materials | Led the pair of lost Derelicts to an unsafe place 1408 | -8/Materials | Discovered new exit (range 16) 2362 | -8/Materials | Build established: Skirmisher 2846 | -8/Materials | Discovered new exit (range 16) 2949 | -8/Materials | Entered Factory 2949 | -7/Factory | Evolved 2 slots: Propulsion x1, Weapon x1 3251 | -7/Factory | Fabricated K-01 Serf (x1) 3349 | -7/Factory | Repaired Particle Charger 3637 | -7/Factory | Identified exit to DSF 3657 | -7/Factory | Entered DSF 3657 | -7/DSF | Accompanied by 1 ally 3717 | -7/DSF | Additional patrols routed to DSF 3880 | -7/DSF | Lost 3 parts (1n1u1w) 3935 | -7/DSF | Sterilization system engaged 3955 | -7/DSF | Ambient heat levels rising (+10) 3961 | -7/DSF | Lost 6 parts (1n1u4w) 3970 | -7/DSF | Ambient heat levels rising (+10) 3985 | -7/DSF | Ambient heat levels rising (+10) 4000 | -7/DSF | Ambient heat levels rising (+10) 4015 | -7/DSF | Ambient heat levels rising (+10) 4021 | -7/DSF | Core integrity fell below 50% 4030 | -7/DSF | Ambient heat levels rising (+10) 4042 | -7/DSF | Core integrity fell below 20% 4045 | -7/DSF | Ambient heat levels rising (+10) 4060 | -7/DSF | Ambient heat levels rising (+10) 4062 | -7/DSF | Core destroyed Last Messages --------------- A-02 Transporter heat damages core (-5). Overheating: Core damaged (-126). A-02 Transporter heat damages Lgt. Treads. Overheating: Energy bleed (-41). A-02 Transporter heat damages Transport Network Coupler. A-02 Transporter heat damages Lgt. Treads. Overheating: Energy bleed (-23). A-02 Transporter heat damages core (-4). A-02 Transporter heat spikes uncontrollably. A-02 Transporter heat damages Ion Engine. Overheating: Lrg. Storage Unit damaged (-13). A-02 Transporter heat damages Transport Network Coupler. Power failure, Imp. Deuterium Engine shutdown. A-02 Transporter heat damages core (-3). A-02 Transporter heat damages core (-5). ALERT: Ambient heat levels +10. Power failure, Imp. Deuterium Engine shutdown. Overheating: Core damaged (-77). Map ----- +----------------------------------------------------+ | ???????????????????????????????????????????? | | ???????????????????????????????????????????? | | ???????????????????????????????????????????? | | ??????????????????????????????????????##???? | | ?????????????????????????????????????#""???? | | ?????????????????????????????????????#"#???? | | ????????????????????????????????????##"####? | | ????????????????????????????#???###?#"""""#? | | ???????????????????????? [[# # ##"""""#? | | ?????????????????????? ! ""## | | ?????????????????????? =![ """" | | ??????????????????????# ### #!!##%!!""## | | ?????????????????????## ###???#!??## ^###? | | ????????????????????? !!????#??###^=##?? | | ?????????????????????? !????????#!! !#?? | | ?????????????????????? !????????#!! !#?? | | ????????????????????### ###??????### ##?? | | ????????????????????#!! !!#??????#!! !#?? | | ????????????????????#!! !!#??????#!! !#?? | | ?????????????????????!! !!???????#!! !#?? | | ????????????##??#####?# #?########## ###? | | ??????# ????# ?#!!!### ###!!!#!!!## #? | | ??????# ## #!!!##% %!#!!!#!!!##% #? | | ??????#// ]%!% % % ===#? | | ??????#// !%[%%[* % ==## | | ??????#// @ === [ % ==" | | ???????????##%%%#***##% %%;*!!!#!!!## %## | | ????????????????#***### "###!!!#!!!## % #? | | ????????????????#####?# % #?########## ###? | | ?????????????????????!! !!???????# = #?? | | ????????????????????#!! !!#??????# !%* #?? | | ????????????????????#!! !!#??????# !^!!#?? | | ????????????????????### ###??????###[%##?? | | ?????????????????????? ????????# =[=*#?? | | ?????????????????????? ????????#!!!=!#?? | | ????????????????????? ???????###%*##?? | | ?????????????????????## ##?????????#!!#??? | | ??????????????????????# #?????????#!!%%"#? | | ?????????????????????? ????????=! %"%"" | | ?????????????????????? ???????!%[*% ""## | | ??????????????????????? ???????]]##"%"""#? | | ????????????????????????????????###?#"""""#? | | ????????????????????????????????????##"####? | | ?????????????????????????????????????#"#???? | | ??????????????????????????????????????"????? | | ???????????????????????????????????????????? | | ???????????????????????????????????????????? | | ???????????????????????????????????????????? | | ???????????????????????????????????????????? | | ???????????????????????????????????????????? | +----------------------------------------------------+ Best States ------------- Heat Dissipation 53 Energy Generation 16 Energy Capacity 290 Matter Stores 300 Matter Capacity 300 Sight Range 16 Robot Scan Range 14 Terrain Scan Density 10 ECM Strength 2 Utility Shielding 66 Weapon Shielding 33 Evasion (%) 57 Particle Charging 15 Offensive Hacking 10 Item Schematics ----------------- None Robot Schematics ------------------ None Fabricated ------------ K-01 Serf | x1 | -7/Factory | Preloaded Alien Tech Used ----------------- None Achievements -------------- Hey, That's Mine! My Command Is Your Wish Serviceable Loadout Tourist Challenges ------------ None Game ------ Seed CannonDecoderPlatform Manual? 0 Play Time 01:10:26 Cumulative 6.4 hours Start 2024.06.01 @ 13:53:32 End 2024.06.01 @ 15:13:53 Sessions 1 Manual Loads 0 Difficulty Rogue Special Mode None Game No. 13 Rogue 13 Adventurer 0 Explorer 0 Win Type - Total 0 Types 0/0/0/0/0/0/0/0/0 Lore% 5 Gallery% 12 Achievement% 10 Wizard Run 0 Options --------- Layout 1 ASCII 0 Keyboard 0 Movement Mouse Keybinds 0 Fullscreen 2 Font 24/Terminus Map View 50x35 Zoom Use 0% Tactical HUD 0 Map Filters NONE Filters NONE Steam 1 RUN: 3c3d311f-d618-48ee-9069-1aeeac673450